Cogmind - Beta 10.1 @@@ ROGUE MODE // 2020.10.26 @ 14:43:13 Player: Hechtic Result: Destroyed by D-53 Grenadier with Mini Grenade Launcher Performance ------------- Evolutions (0) 0 Regions Visited (2) 400 Robots Destroyed (50) 250 Value Destroyed (681) 681 Prototype IDs (2) 40 Alien Tech Used (0) 0 Bonus (0) 0 TOTAL SCORE: 1371 Bonus ------- None Cogmind --------- Core Integrity 0/250 Matter 200/300 Energy 100/100 System Corruption 9% Temperature Cool (0) Movement Core (550) Ox10 Location -10/Mines Parts ------- > --- POWER (1) -------- (None) > --- PROPULSION (2) --- (None) > --- UTILITY (2) ------ High-capacity Storage Unit Targeting Computer > --- WEAPON (2) ------- (None) > --- INVENTORY (12) --- Ion Engine Aluminum Leg Aluminum Leg Improved Heat Sink Improved Heat Sink Sensor Array Signal Interpreter Terrain Scanner Transport Network Coupler Beam Cannon Datajack Hammer Peak State ------------ > --- POWER ------------ Ion Engine > --- PROPULSION ------- Aluminum Leg Aluminum Leg > --- UTILITY ---------- High-capacity Storage Unit Targeting Computer > --- WEAPON ----------- EM Pulse Gun Assault Rifle > --- INVENTORY -------- Ion Engine Compact Wheel Compact Wheel Small Storage Unit Small Storage Unit Transport Network Coupler Assault Rifle Grenade Launcher Datajack Hammer [Rating: 8] Favorites ----------- Power Ion Engine Engine Ion Engine Propulsion Aluminum Leg Leg Aluminum Leg Utility Targeting Computer Storage High-capacity Storage Unit Processor Targeting Computer Weapon Assault Rifle Energy Gun EM Pulse Gun Energy Cannon Beam Cannon Ballistic Gun Assault Rifle Launcher Grenade Launcher Impact Weapon Hammer Build | -11 -10 -10 ------- Run | Scr Mat Min Slots Evolved . | . . . Power . | . . . Propulsion . | . . . Utility . | . . . Weapon . | . . . Parts Attached 26 | 6 17 3 Power 4 | 1 3 . Engine 4 | 1 3 . Core . | . . . Reactor . | . . . Propulsion 6 | 2 4 . Treads . | . . . Leg 6 | 2 4 . Wheel . | . . . Hover . | . . . Flight . | . . . Utility 3 | 1 2 . Device . | . . . Storage 2 | 1 1 . Processor 1 | . 1 . Hackware . | . . . Protection . | . . . Artifact . | . . . Weapon 13 | 2 8 3 Energy Gun 2 | 1 1 . Energy Cannon 1 | . 1 . Ballistic Gun 5 | 1 4 . Ballistic Cannon . | . . . Launcher 3 | . 1 2 Special Weapon . | . . . Impact Weapon 2 | . 1 1 Slashing Weapon . | . . . Piercing Weapon . | . . . Special Melee Weapon . | . . . Unidentified Prototypes . | . . . Parts Lost 6 | . 1 5 Power 1 | . . 1 Propulsion 2 | . . 2 Utility . | . . . Weapon 3 | . 1 2 Highest Loss Streak 5 | . 1 5 Average Slot Usage (%) 98 | . 99 97 Engine 13 | . 14 13 Leg 27 | . 28 27 Storage 14 | . 14 14 Processor 13 | . 13 14 Energy Gun 8 | . 9 . Energy Cannon 4 | . 5 1 Ballistic Gun 12 | . 12 13 Impact Weapon 1 | . . 9 Naked Turns . | . . . Heaviest Build 42 | 13 42 42 Greatest Support 20 | 20 20 20 Greatest Overweight (x) 4 | 4 2 2 Average Overweight (x) 1 | . 1 2 Largest Inventory Capacity 12 | 6 12 12 Average Capacity 10 | 5 10 12 Most Carried 12 | 5 12 12 Average Carried 9 | 3 9 12 Final Capacity 12 | 6 12 12 Final Carried 12 | 5 12 12 Class Distribution -------------------- 100% | Mutant Dominant Class ---------------- Mutant | -10/Materials Mutant | -10/Mines Resources | -11 -10 -10 ----------- Run | Scr Mat Min Matter Collected 722 | 272 361 89 Remotely . | . . . Salvage Created 1494 | 84 1176 234 Parts 63 | 2 48 13 Haulers Intercepted 2 | . 2 . Recyclers Shooed 4 | . 4 . Parts Field Recycled . | . . . Retrieved Matter . | . . . Parts Self-Destructed . | . . . Prevented . | . . . Kills | -11 -10 -10 ------- Run | Scr Mat Min Combat Hostiles Destroyed 36 | . 16 20 Guns 12 | . 8 4 Cannons 6 | . 6 . AOE 18 | . 2 16 Classes Destroyed 9 | 1 6 2 Worker 1 | . 1 . Builder 1 | . . 1 Hauler 2 | . 2 . Recycler 8 | 1 5 2 Operator 1 | . 1 . Watcher 1 | . 1 . Swarmer 9 | . 3 6 Grunt 13 | . 13 . Assembled 14 | . . 14 Best Kill Streak 16 | 1 4 16 Combat Bots Only 14 | . 3 14 Max Kills in Single Turn 4 | 1 2 4 Gunslinging 1 | . 1 . Exploded 4 | . 1 4 Melee . | . . . Uniques/NPCs Destroyed . | . . . Combat | -11 -10 -10 -------- Run | Scr Mat Min Damage Taken 1368 | . 671 697 Core 255 | . 120 135 Absorbed by Shields . | . . . Core Remaining (%) 100 | 100 . . Volleys Fired 91 | 4 64 23 Largest 2 | 2 2 2 Hottest 100 | 60 100 50 Shots Fired 167 | 8 127 32 Gun 122 | 8 95 19 Cannon 30 | . 30 . Launcher 15 | . 2 13 Special . | . . . Kinetic 80 | 4 57 19 Thermal 30 | . 30 . Explosive 15 | . 2 13 Electromagnetic 42 | 4 38 . Robot Hit Streak 14 | 2 14 3 Robot Miss Streak 5 | 2 5 2 Penetration Max . | . . . Secondary Targets 1 | . 1 . Max Gunslinging Chain 1 | . 1 . Shots Hit Robots 104 | 4 90 10 Core Hits 83 | 1 43 39 Critical Hits 2 | 1 . 1 Critical Kills 2 | 1 . 1 Critical Parts Destroyed . | . . . Melee Attacks 1 | . 1 . Impact 1 | . 1 . Slashing . | . . . Piercing . | . . . Sneak Attacks . | . . . Combat Hostiles . | . . . Follow-up Attacks . | . . . Damage Inflicted 2552 | 65 1313 1174 Guns 1006 | 65 844 97 Cannons 382 | . 382 . Explosions 1164 | . 87 1077 Melee . | . . . Ramming . | . . . Kinetic 548 | 40 411 97 Thermal 382 | . 382 . Explosive 1164 | . 87 1077 Electromagnetic 458 | 25 433 . Impact . | . . . Slashing . | . . . Piercing . | . . . Highest Corruption 5 | . . 5 Average Corruption 5 | . . 5 Corruption Purged . | . . . Overload Shots . | . . . Overflow Damage 14 | . . 14 Projectiles . | . . . Explosions 14 | . . 14 Melee . | . . . Knockbacks . | . . . Impact . | . . . Kinetic . | . . . Secondary . | . . . Self-Inflicted Damage 134 | . . 134 Shots 4 | . . 4 Rammed . | . . . Targets Rammed 1 | . . 1 Kicked 1 | . . 1 Crushed . | . . . Highest Temperature 175 | . 175 16 Average Temperature 54 | . 55 16 Received Heat Transfer 371 | . 351 20 Siege Activations . | . . . Robots Corrupted . | . . . Combat Hostiles . | . . . Parts Fried 2 | . 2 . Impact Corruptions . | . . . Robots Melted . | . . . Combat Hostiles . | . . . Parts Melted . | . . . Heat Transferred 814 | . 814 . Parts Sabotaged . | . . . Parts Stolen . | . . . Parts Stripped . | . . . Power Chain Reactions . | . . . Missiles Intercepted . | . . . Alert | -11 -10 -10 ------- Run | Scr Mat Min Peak Influence 233 | 5 233 208 Initial 58 | . 3 58 Average 98 | 1 88 176 Maximum Alert Level 1 | . 1 1 Low Security (%) 81 | 100 89 38 Level 1 18 | . 10 61 Level 2 . | . . . Level 3 . | . . . Level 4 . | . . . Level 5 . | . . . High Security . | . . . Max Security . | . . . Squads Dispatched 3 | . 3 . Investigation 2 | . 2 . Extermination . | . . . Reinforcement 1 | . 1 . Assault . | . . . Garrison . | . . . Intercept . | . . . Construction Impeded . | . . . Haulers Reinforced . | . . . Stealth | -11 -10 -10 --------- Run | Scr Mat Min Distress Signals 1 | . 1 . Communications Jammed . | . . . Distress Signals . | . . . Times Spotted 50 | . 26 24 Peak Tracking Total 15 | . 5 15 Tactical Retreats 3 | . 3 . Traps | -11 -10 -10 ------- Run | Scr Mat Min Traps Triggered 1 | . 1 . Indirectly . | . . . Trap Hack Attempts . | . . . Triggered . | . . . Disarmed . | . . . Reprogrammed . | . . . Reused . | . . . Traps Extracted . | . . . Installed . | . . . Triggered . | . . . Machines | -11 -10 -10 ---------- Run | Scr Mat Min Machines Disabled 2 | . 2 . Max in Single Turn 1 | . 1 . Machines Sabotaged . | . . . Garrisons Compromised . | . . . Overloaded Fab Kills . | . . . Fab Network Shutdowns . | . . . Hacking | -11 -10 -10 --------- Run | Scr Mat Min Machines Accessed 8 | . 8 . Terminals 6 | . 6 . Fabricators . | . . . Repair Stations . | . . . Recycling Units 2 | . 2 . Scanalyzers . | . . . Garrison Access . | . . . Total Hacks 22 | . 22 . Successful 12 | . 12 . Failed 10 | . 10 . Catastrophic . | . . . Database Lockouts . | . . . Manual 5 | . 5 . Terminals 19 | . 19 . Fabricators . | . . . Repair Stations . | . . . Recycling Units 3 | . 3 . Scanalyzers . | . . . Garrison Access . | . . . Terminal Hacks 9 | . 9 . Part Schematic 1 | . 1 . Prototype ID Bank 1 | . 1 . Branch Access Points 1 | . 1 . Emergency Access Points 1 | . 1 . Alert Level 1 | . 1 . Locate Traps 2 | . 2 . Zone Layout 2 | . 2 . Fabricator Hacks . | . . . Repair Station Hacks . | . . . Recycling Unit Hacks 3 | . 3 . Report Inventory 2 | . 2 . Retrieve Components 1 | . 1 . Scanalyzer . | . . . Garrison Access Hacks . | . . . Unauthorized Hacks . | . . . Terminals . | . . . Fabricators . | . . . Repair Stations . | . . . Recycling Units . | . . . Scanalyzers . | . . . Garrison Access . | . . . Data Cores Recovered . | . . . Used . | . . . Hacking Detections 6 | . 6 . Full Trace Events 2 | . 2 . Feedback Events . | . . . Feedback Blocked . | . . . Robot Schematics Acquired . | . . . Robots Built . | . . . Matter . | . . . Time . | . . . Total Robot Build Rating . | . . . Part Schematics Acquired 1 | . 1 . Parts Built . | . . . Matter . | . . . Time . | . . . Total Part Build Rating . | . . . Parts Repaired . | . . . Time . | . . . Parts Recycled . | . . . Recycled Matter . | . . . Retrieved Matter . | . . . Retrieved Components 3 | . 3 . Parts Scanalyzed . | . . . Part Schematics Acquired . | . . . Parts Damaged . | . . . Bothacking | -11 -10 -10 ------------ Run | Scr Mat Min Used RIF Installer . | . . . Robots Hacked . | . . . Non-combat . | . . . Combat . | . . . Robot Hacks Applied . | . . . Relay Couplers Released . | . . . Robots Rewired . | . . . Allies Hacked . | . . . Hacks Repelled . | . . . Allies | -11 -10 -10 -------- Run | Scr Mat Min Total Allies . | . . . Largest Group . | . . . Highest-Rated Group . | . . . Highest-Rated Ally . | . . . Total Orders . | . . . Ally Attacks . | . . . Total Damage . | . . . Kills . | . . . Allies Corrupted . | . . . Allies Melted . | . . . Intel | -11 -10 -10 ------- Run | Scr Mat Min Robot Analysis Total . | . . . Derelict Logs Recovered 1 | . . 1 Drone Launches . | . . . Drone Recoveries . | . . . Exploration | -11 -10 -10 ------------- Run | Scr Mat Min Turns Passed 1715 | 78 1358 279 Spaces Moved 818 | 40 657 121 Core 11 | 11 . . Treads . | . . . Legs 807 | 29 657 121 Wheels . | . . . Hover . | . . . Flight . | . . . Fastest Speed 50 | 50 120 180 Average Speed 162 | 132 161 180 Slowest Speed 250 | 250 180 180 Overloaded Moves . | . . . Propulsion Burnouts . | . . . Robots Hopped . | . . . Cave-ins Triggered 1 | . . 1 Exploration Rate (%) 42 | 4 96 26 Regions Visited 2 Branch Regions 1 Pre-discovered Areas . | . . . Known Exits Taken 1 | . 1 . Unknown Exits Taken 1 | 1 . . Scrap Searched . | . . . Spaces Dug 1 | . 1 . Terrain Destroyed 83 | . 22 61 Melee 1 | . 1 . Projectile . | . . . AOE 82 | . 21 61 Terrain Rammed . | . . . Walls Destroyed . | . . . Machines Disabled . | . . . Actions | -11 -10 -10 --------- Run | Scr Mat Min Total 1034 | 54 832 148 Wait 58 | . 58 . Move 816 | 39 656 121 Hop . | . . . Pick Up 23 | 5 18 . Fast Attach 7 | 6 1 . Attach 1 | . 1 . Detach . | . . . Swap 18 | . 15 3 Drop 18 | . 18 . Fire 91 | 4 64 23 Melee 1 | . 1 . Ram . | . . . Kick 1 | . . 1 Crush . | . . . Escape Stasis . | . . . Rewire . | . . . Trap . | . . . Miscellaneous . | . . . Route ------- -11/Scrapyard -10/Materials (discovered 5 exits: [*Mat x3] / *Min x2) -10/Mines (discovered 1 exit: [*Mat]) History --------- Turn | Location | Event 15 | -11/Scrapyard | Discovered new exit (range 16) 79 | -11/Scrapyard | Entered Materials 254 | -10/Materials | Discovered new exit (range 12) 303 | -10/Materials | Build established: Mutant 565 | -10/Materials | Discovered new exit (range 16) 883 | -10/Materials | Discovered new exit (range 3) 915 | -10/Materials | Identified exit to Mines 1181 | -10/Materials | Discovered new exit (range 16) 1437 | -10/Materials | Entered Mines 1475 | -10/Mines | Core integrity fell below 50% 1604 | -10/Mines | Discovered new exit (range 4) 1683 | -10/Mines | Assembled infested the area 1714 | -10/Mines | Core integrity fell below 20% 1716 | -10/Mines | Crushed by falling debris 1716 | -10/Mines | Destroyed by D-53 Grenadier with Mini Grenade Launcher Last Messages --------------- 01704_ Knocked back. 01706_ U-05 Engineer destroyed. 01708_ Assault Rifle destroyed. 01708_ Aluminum Leg destroyed. 01708_ System corrupted by crushing effect (+4). 01708_ System corrupted by crushing effect (+1). 01708_ Knocked back. 01709_ as-65956 destroyed. 01713_ as-90956 destroyed. 01713_ as-00184 destroyed. 01713_ Destroyed Asb. Hover Unit. 01713_ as-99019 destroyed. 01713_ Knocked back. 01715_ as-21012 destroyed. 01716_ The unstable cave ceiling collapses. 01716_ Crushed by falling debris. 01716_ Grenade Launcher destroyed. 01716_ System corrupted by crushing effect (+4). 01716_ C-30 ARC bursts open, deploying its payload. 01716_ D-53 Grenadier unfolds itself. Map ----- +----------------------------------------------------+ | ????# % #??#### #####?????????? | | ????## ##??# #?????????? | | ?????# ##???# """ #?????????? | | ?????# ##????# < """ #?????????? | | ?????### ###?????# """ #?????????? | | ??????## ####???????# #?????????? | | ???????# #??###?????###########?????????? | | ???????# #?# ##????????????????????????? | | ???????# ## #????????????????????????? | | ??????## # #????????????????????????? | | ????### #?????????????????????????? | | ???## ##?????????????????????????? | | ???# ####??????????????????????????? | | ???# ##?????????????????????????????? | | ???#### ##########????####???????????????? | | ??????# #??? #???????????????? | | ??????# d #??? ##??????????????? | | ??????#########% #??? ##?????????????? | | ??????????????#d #### #####?? ??????? | | ??????????????# ??????? | | ??????????????# ! ?????? | | ??????????????## % ?????? | | ???????????????# ?????? | | ???????????????# % ?????? | | ???????????????# ##????????? | | ???????????????# @# % #?????????? | | ???????????????# # *## #??????????? | | ???????????????###### #?? ###??????????? | | ????????????????????? #???##????????????? | | ????????????????????? ????????????????? | | ????????????????????? $###???????????????? | | ????????????????????? #?????????????????? | | ????????????????????? #?????????????????? | | ????????????????????? #?????????????????? | | ?????????????????????? ?????????????????? | | ?????????????????????? ?????????????????? | | ?????????????????????? ?????????????????? | | ?????????????????????? ??????????????????? | | ?????????????????????????????????????????? | | ?????????????????????????????????????????? | | ?????????????????????????????????????????? | | ?????????????????????????????????????????? | | ?????????????????????????????????????????? | | ?????????????????????????????????????????? | | ?????????????????????????????????????????? | | ?????????????????????????????????????????? | | ?????????????????????????????????????????? | | ?????????????????????????????????????????? | | ?????????????????????????????????????????? | | ?????????????????????????????????????????? | +----------------------------------------------------+ Best States ------------- Heat Dissipation 25 Energy Generation 10 Energy Capacity 250 Matter Stores 300 Matter Capacity 300 Sight Range 16 Terrain Scan Density 10 Evasion (%) 40 Targeting Accuracy 5 Item Schematics ----------------- Datajack | -10/Materials | Hacked Robot Schematics ------------------ None Fabricated ------------ Nothing Alien Tech Used ----------------- None Achievements -------------- None Challenges ------------ None Game ------ Seed NeutralizingSmallCore Manual? 0 Play Time 00:25:22 Cumulative 16.9 hours Start 2020.10.26 @ 14:15:57 End 2020.10.26 @ 14:43:13 Sessions 1 Manual Loads 0 Difficulty Rogue Special Mode None Game No. 28 Rogue 28 Adventurer 0 Explorer 0 Win Type - Total 0 Types 0/0/0/0/0/0/0/0/0 Lore% 9 Gallery% 12 Achievement% 12 Wizard Run 0 Options --------- ASCII 0 Keyboard 0 Movement Mouse Keybinds 0 Fullscreen 1 Font 24/Smallcaps Map View 76x50 Tactical HUD 1 Map Filters NONE Filters NONE Steam 1 RUN: ed22ebdc-6036-4910-8014-e5eec9ee39e6